[Event "Titled Tuesday Blitz October 11 Early 2022"]
[White "Mitrabha, Guha"]
[Black "Asavasaetakul, Chawit"]
[WhiteFideId "5057000"]
[BlackFideId "6204856"]
[WhiteElo "2526"]
[BlackElo "1919"]
[Result "1-0"]
[Round "02"]
[TimeControl "180+1"]
[Date "2022.10.11"]
[WhiteClock "0:00:35"]
[BlackClock "0:00:06"]

1. d4 {[%clk 0:03:00]}  d5 {[%clk 0:02:59]} 2. Nf3 {[%clk 0:02:59]}  c6 {[%clk 0:03:00]} 3. c4 {[%clk 0:02:59]}  Nf6 {[%clk 0:03:00]} 4. e3 {[%clk 0:02:59]}  Bf5 {[%clk 0:02:59]} 5. Bd3 {[%clk 0:02:58]}  Bxd3 {[%clk 0:02:58]} 6. Qxd3 {[%clk 0:02:59]}  e6 {[%clk 0:02:59]} 7. O-O {[%clk 0:03:00]}  Nbd7 {[%clk 0:02:59]} 8. Nc3 {[%clk 0:03:00]}  Be7 {[%clk 0:03:00]} 9. b3 {[%clk 0:03:00]}  O-O {[%clk 0:03:00]} 10. Bb2 {[%clk 0:03:00]}  Re8 {[%clk 0:03:00]} 11. Rad1 {[%clk 0:03:01]}  Qa5 {[%clk 0:02:59]} 12. Rfe1 {[%clk 0:02:57]}  Rad8 {[%clk 0:02:57]} 13. Qb1 {[%clk 0:02:55]}  Bb4 {[%clk 0:02:56]} 14. Rc1 {[%clk 0:02:55]}  Ne4 {[%clk 0:02:56]} 15. Qc2 {[%clk 0:02:53]}  Nxc3 {[%clk 0:02:40]} 16. Bxc3 {[%clk 0:02:54]}  Bxc3 {[%clk 0:02:40]} 17. Qxc3 {[%clk 0:02:55]}  Qxc3 {[%clk 0:02:40]} 18. Rxc3 {[%clk 0:02:56]}  Nf6 {[%clk 0:02:33]} 19. Rc2 {[%clk 0:02:50]}  Ne4 {[%clk 0:02:33]} 20. Rb1 {[%clk 0:02:50]}  f6 {[%clk 0:02:30]} 21. b4 {[%clk 0:02:50]}  Nd6 {[%clk 0:02:29]} 22. c5 {[%clk 0:02:48]}  Nc4 {[%clk 0:02:23]} 23. Rb3 {[%clk 0:02:42]}  a6 {[%clk 0:02:18]} 24. Nd2 {[%clk 0:02:41]}  Nxd2 {[%clk 0:02:17]} 25. Rxd2 {[%clk 0:02:42]}  e5 {[%clk 0:02:18]} 26. Kf1 {[%clk 0:02:42]}  exd4 {[%clk 0:02:18]} 27. Rxd4 {[%clk 0:02:42]}  Kf7 {[%clk 0:02:10]} 28. Ke2 {[%clk 0:02:42]}  Re4 {[%clk 0:02:04]} 29. a4 {[%clk 0:02:29]}  Rde8 {[%clk 0:02:01]} 30. Rbd3 {[%clk 0:02:22]}  Rxd4 {[%clk 0:01:57]} 31. Rxd4 {[%clk 0:02:23]}  Re4 {[%clk 0:01:57]} 32. Kd3 {[%clk 0:02:19]}  Rxd4+ {[%clk 0:01:54]} 33. Kxd4 {[%clk 0:02:19]}  Ke6 {[%clk 0:01:54]} 34. e4 {[%clk 0:02:19]}  dxe4 {[%clk 0:01:53]} 35. Kxe4 {[%clk 0:02:20]}  f5+ {[%clk 0:01:52]} 36. Kd4 {[%clk 0:02:20]}  g5 {[%clk 0:01:52]} 37. f3 {[%clk 0:02:19]}  h6 {[%clk 0:01:52]} 38. g3 {[%clk 0:02:18]}  Kf6 {[%clk 0:01:52]} 39. f4 {[%clk 0:02:08]}  Ke6 {[%clk 0:01:52]} 40. h4 {[%clk 0:02:07]}  gxh4 {[%clk 0:01:52]} 41. gxh4 {[%clk 0:02:07]}  h5 {[%clk 0:01:48]} 42. Kc4 {[%clk 0:02:08]}  Kf6 {[%clk 0:01:48]} 43. b5 {[%clk 0:02:08]}  axb5+ {[%clk 0:01:48]} 44. axb5 {[%clk 0:02:08]}  Ke6 {[%clk 0:01:49]} 45. bxc6 {[%clk 0:02:04]}  bxc6 {[%clk 0:01:50]} 46. Kd4 {[%clk 0:02:04]}  Kf6 {[%clk 0:01:50]} 47. Kd3 {[%clk 0:02:04]}  Ke6 {[%clk 0:01:51]} 48. Kc4 {[%clk 0:02:05]}  Kf6 {[%clk 0:01:51]} 49. Kb4 {[%clk 0:02:04]}  Ke6 {[%clk 0:01:15]} 50. Ka5 {[%clk 0:02:03]}  Kd5 {[%clk 0:01:15]} 51. Kb6 {[%clk 0:02:04]}  Ke4 {[%clk 0:01:16]} 52. Kxc6 {[%clk 0:02:04]}  Kxf4 {[%clk 0:01:16]} 53. Kd5 {[%clk 0:02:02]}  Kg3 {[%clk 0:01:16]} 54. c6 {[%clk 0:02:02]}  f4 {[%clk 0:01:16]} 55. c7 {[%clk 0:02:02]}  f3 {[%clk 0:01:17]} 56. c8=Q {[%clk 0:02:02]}  f2 {[%clk 0:01:18]} 57. Qg8+ {[%clk 0:01:50]}  Kh2 {[%clk 0:01:17]} 58. Qf7 {[%clk 0:01:49]}  Kg1 {[%clk 0:01:16]} 59. Qg6+ {[%clk 0:01:46]}  Kh1 {[%clk 0:01:14]} 60. Qf5 {[%clk 0:01:43]}  Kg1 {[%clk 0:01:13]} 61. Qg5+ {[%clk 0:01:43]}  Kh1 {[%clk 0:01:13]} 62. Qf4 {[%clk 0:01:41]}  Kg1 {[%clk 0:01:12]} 63. Qg3+ {[%clk 0:01:41]}  Kh1 {[%clk 0:01:12]} 64. Qf3+ {[%clk 0:01:28]}  Kg1 {[%clk 0:01:12]} 65. Qxh5 {[%clk 0:01:28]}  f1=Q {[%clk 0:01:12]} 66. Qg4+ {[%clk 0:01:27]}  Kh2 {[%clk 0:01:10]} 67. h5 {[%clk 0:01:26]}  Qf7+ {[%clk 0:01:08]} 68. Ke5 {[%clk 0:01:25]}  Qe7+ {[%clk 0:01:07]} 69. Qe6 {[%clk 0:01:17]}  Qc5+ {[%clk 0:01:03]} 70. Qd5 {[%clk 0:01:17]}  Qe7+ {[%clk 0:01:02]} 71. Kf5 {[%clk 0:01:16]}  Qh7+ {[%clk 0:01:00]} 72. Kg4 {[%clk 0:01:13]}  Qg7+ {[%clk 0:00:57]} 73. Qg5 {[%clk 0:01:11]}  Qd7+ {[%clk 0:00:56]} 74. Qf5 {[%clk 0:01:12]}  Qg7+ {[%clk 0:00:55]} 75. Kf3 {[%clk 0:01:10]}  Qc3+ {[%clk 0:00:50]} 76. Ke4 {[%clk 0:01:10]}  Qc2+ {[%clk 0:00:49]} 77. Kf4 {[%clk 0:01:07]}  Qc4+ {[%clk 0:00:43]} 78. Qe4 {[%clk 0:01:01]}  Qf7+ {[%clk 0:00:42]} 79. Kg5 {[%clk 0:01:02]}  Qg7+ {[%clk 0:00:41]} 80. Qg6 {[%clk 0:01:01]}  Qe5+ {[%clk 0:00:38]} 81. Kh6 {[%clk 0:01:01]}  Qe3+ {[%clk 0:00:35]} 82. Kg7 {[%clk 0:00:59]}  Qe7+ {[%clk 0:00:34]} 83. Qf7 {[%clk 0:00:59]}  Qg5+ {[%clk 0:00:34]} 84. Kh7 {[%clk 0:00:58]}  Qe5 {[%clk 0:00:24]} 85. h6 {[%clk 0:00:57]}  Qe4+ {[%clk 0:00:25]} 86. Kg7 {[%clk 0:00:57]}  Qe5+ {[%clk 0:00:24]} 87. Kg6 {[%clk 0:00:57]}  Qe4+ {[%clk 0:00:23]} 88. Qf5 {[%clk 0:00:57]}  Qc6+ {[%clk 0:00:22]} 89. Kg5 {[%clk 0:00:55]}  Qg2+ {[%clk 0:00:19]} 90. Kh5 {[%clk 0:00:53]}  Qe2+ {[%clk 0:00:17]} 91. Kh4 {[%clk 0:00:50]}  Qe1+ {[%clk 0:00:16]} 92. Kg5 {[%clk 0:00:50]}  Qe7+ {[%clk 0:00:15]} 93. Qf6 {[%clk 0:00:48]}  Qc5+ {[%clk 0:00:15]} 94. Kg6 {[%clk 0:00:49]}  Qc2+ {[%clk 0:00:15]} 95. Qf5 {[%clk 0:00:44]}  Qc6+ {[%clk 0:00:14]} 96. Kg7 {[%clk 0:00:44]}  Qc7+ {[%clk 0:00:14]} 97. Qf7 {[%clk 0:00:43]}  Qc3+ {[%clk 0:00:15]} 98. Qf6 {[%clk 0:00:43]}  Qc7+ {[%clk 0:00:14]} 99. Kf8 {[%clk 0:00:43]}  Qc8+ {[%clk 0:00:14]} 100. Kf7 {[%clk 0:00:44]}  Qd7+ {[%clk 0:00:15]} 101. Qe7 {[%clk 0:00:42]}  Qd5+ {[%clk 0:00:15]} 102. Kg6 {[%clk 0:00:41]}  Qd3+ {[%clk 0:00:14]} 103. Kf6 {[%clk 0:00:34]}  Qd4+ {[%clk 0:00:13]} 104. Qe5+ {[%clk 0:00:34]}  Qxe5+ {[%clk 0:00:10]} 105. Kxe5 {[%clk 0:00:35]}  Kg3 {[%clk 0:00:06]} 106. h7 {[%clk 0:00:35]} 1-0


[Site "https://www.chess.com"]

[Event "Titled Tuesday Blitz October 11 Early 2022"]
[White "Moreno Perez, Tobias Sebastian"]
[Black "Zaloznyy, Mike"]
[WhiteFideId "186716"]
[BlackFideId "2023075"]
[WhiteElo "2476"]
[BlackElo "2126"]
[Result "1-0"]
[Round "02"]
[TimeControl "180+1"]
[Date "2022.10.12"]
[WhiteClock "0:00:05"]
[BlackClock "0:00:21"]

1. Nf3 {[%clk 0:03:00]}  Nf6 {[%clk 0:02:55]} 2. c4 {[%clk 0:03:00]}  b6 {[%clk 0:02:54]} 3. g3 {[%clk 0:03:00]}  Bb7 {[%clk 0:02:54]} 4. Bg2 {[%clk 0:03:01]}  e6 {[%clk 0:02:55]} 5. O-O {[%clk 0:03:01]}  Be7 {[%clk 0:02:55]} 6. d4 {[%clk 0:03:00]}  O-O {[%clk 0:02:56]} 7. Nc3 {[%clk 0:03:00]}  Ne4 {[%clk 0:02:56]} 8. Qc2 {[%clk 0:02:59]}  Nxc3 {[%clk 0:02:56]} 9. Qxc3 {[%clk 0:03:00]}  Be4 {[%clk 0:02:56]} 10. Qe3 {[%clk 0:02:59]}  f5 {[%clk 0:02:55]} 11. d5 {[%clk 0:02:59]}  Na6 {[%clk 0:02:42]} 12. Rd1 {[%clk 0:02:42]}  Qc8 {[%clk 0:02:41]} 13. Nd4 {[%clk 0:02:31]}  Bxg2 {[%clk 0:02:40]} 14. Kxg2 {[%clk 0:02:32]}  Nc5 {[%clk 0:02:04]} 15. dxe6 {[%clk 0:02:26]}  dxe6 {[%clk 0:01:54]} 16. Nc6 {[%clk 0:02:20]}  Qb7 {[%clk 0:01:37]} 17. Qf3 {[%clk 0:02:20]}  Bf6 {[%clk 0:01:35]} 18. Be3 {[%clk 0:01:56]}  Ne4 {[%clk 0:01:32]} 19. Nd4 {[%clk 0:01:56]}  Rfe8 {[%clk 0:01:26]} 20. Rac1 {[%clk 0:01:50]}  Rad8 {[%clk 0:01:13]} 21. Kg1 {[%clk 0:01:44]}  c5 {[%clk 0:01:07]} 22. Nb5 {[%clk 0:01:30]}  Bxb2 {[%clk 0:01:03]} 23. Rb1 {[%clk 0:01:30]}  Bf6 {[%clk 0:00:50]} 24. Qf4 {[%clk 0:01:03]}  g5 {[%clk 0:00:36]} 25. Qc7 {[%clk 0:01:02]}  Qxc7 {[%clk 0:00:23]} 26. Nxc7 {[%clk 0:01:03]}  Nc3 {[%clk 0:00:17]} 27. Nxe8 {[%clk 0:00:53]}  Rxe8 {[%clk 0:00:18]} 28. Kf1 {[%clk 0:00:44]}  Nxb1 {[%clk 0:00:18]} 29. Rxb1 {[%clk 0:00:44]}  Rd8 {[%clk 0:00:19]} 30. Ke1 {[%clk 0:00:43]}  Kf7 {[%clk 0:00:19]} 31. a4 {[%clk 0:00:43]}  Bd4 {[%clk 0:00:15]} 32. Bxg5 {[%clk 0:00:43]}  Rd6 {[%clk 0:00:12]} 33. Rb3 {[%clk 0:00:27]}  Bf6 {[%clk 0:00:11]} 34. Be3 {[%clk 0:00:23]}  Bd4 {[%clk 0:00:10]} 35. Bxd4 {[%clk 0:00:17]}  Rxd4 {[%clk 0:00:10]} 36. Rc3 {[%clk 0:00:17]}  Rd6 {[%clk 0:00:09]} 37. e3 {[%clk 0:00:17]}  Ke7 {[%clk 0:00:10]} 38. Ke2 {[%clk 0:00:17]}  Kd7 {[%clk 0:00:11]} 39. h3 {[%clk 0:00:16]}  Kc6 {[%clk 0:00:12]} 40. g4 {[%clk 0:00:16]}  Rd7 {[%clk 0:00:13]} 41. gxf5 {[%clk 0:00:15]}  exf5 {[%clk 0:00:14]} 42. Kf3 {[%clk 0:00:15]}  Re7 {[%clk 0:00:13]} 43. Kf4 {[%clk 0:00:15]}  Rf7 {[%clk 0:00:14]} 44. Ke5 {[%clk 0:00:14]}  a6 {[%clk 0:00:14]} 45. Rd3 {[%clk 0:00:14]}  Rg7 {[%clk 0:00:15]} 46. Rd6+ {[%clk 0:00:14]}  Kc7 {[%clk 0:00:15]} 47. Rf6 {[%clk 0:00:13]}  Rg2 {[%clk 0:00:16]} 48. Rxf5 {[%clk 0:00:13]}  Rh2 {[%clk 0:00:17]} 49. Rf3 {[%clk 0:00:12]}  Kc6 {[%clk 0:00:16]} 50. Kf4 {[%clk 0:00:09]}  b5 {[%clk 0:00:17]} 51. axb5+ {[%clk 0:00:08]}  axb5 {[%clk 0:00:18]} 52. Kg3 {[%clk 0:00:08]}  Rh1 {[%clk 0:00:18]} 53. Rf6+ {[%clk 0:00:08]}  Kc7 {[%clk 0:00:17]} 54. cxb5 {[%clk 0:00:09]}  Rb1 {[%clk 0:00:17]} 55. Rc6+ {[%clk 0:00:09]}  Kb7 {[%clk 0:00:17]} 56. Rxc5 {[%clk 0:00:10]}  Kb6 {[%clk 0:00:18]} 57. Rh5 {[%clk 0:00:10]}  Ka5 {[%clk 0:00:15]} 58. Rxh7 {[%clk 0:00:09]}  Rxb5 {[%clk 0:00:16]} 59. h4 {[%clk 0:00:09]}  Kb4 {[%clk 0:00:17]} 60. Rg7 {[%clk 0:00:08]}  Rc5 {[%clk 0:00:18]} 61. Rg5 {[%clk 0:00:09]}  Rc2 {[%clk 0:00:19]} 62. h5 {[%clk 0:00:08]}  Rd2 {[%clk 0:00:20]} 63. Rg4+ {[%clk 0:00:08]}  Kc5 {[%clk 0:00:19]} 64. h6 {[%clk 0:00:09]}  Rd1 {[%clk 0:00:19]} 65. h7 {[%clk 0:00:08]}  Rd8 {[%clk 0:00:19]} 66. Rg8 {[%clk 0:00:08]}  Rd5 {[%clk 0:00:19]} 67. h8=Q {[%clk 0:00:07]}  Kc4 {[%clk 0:00:20]} 68. Rc8+ {[%clk 0:00:06]}  Kd3 {[%clk 0:00:21]} 69. Qc3+ {[%clk 0:00:06]}  Ke2 {[%clk 0:00:22]} 70. Qc2+ {[%clk 0:00:07]}  Ke1 {[%clk 0:00:20]} 71. Rb8 {[%clk 0:00:06]}  Rg5+ {[%clk 0:00:20]} 72. Kf4 {[%clk 0:00:05]}  Kf1 {[%clk 0:00:19]} 73. Rb1+ {[%clk 0:00:04]}  Kg2 {[%clk 0:00:20]} 74. Kxg5 {[%clk 0:00:04]}  Kh3 {[%clk 0:00:20]} 75. Rh1+ {[%clk 0:00:04]}  Kg2 {[%clk 0:00:21]} 76. Qe4+ {[%clk 0:00:04]}  Kxf2 {[%clk 0:00:21]} 77. Rh2+ {[%clk 0:00:04]}  Kg1 {[%clk 0:00:21]} 78. Qh1# {[%clk 0:00:05]} 1-0


[Site "https://www.chess.com"]

[Event "Titled Tuesday Blitz October 11 Early 2022"]
[White "Omariev, Maksim"]
[Black "Fernandez Hernandez, Gerardo"]
[WhiteFideId "4193423"]
[BlackFideId "2207400"]
[WhiteElo "2442"]
[BlackElo "2145"]
[Result "1-0"]
[Round "02"]
[TimeControl "180+1"]
[Date "2022.10.12"]
[WhiteClock "0:00:06"]
[BlackClock "0:00:02"]

1. g4 {[%clk 0:03:00]}  d6 {[%clk 0:02:52]} 2. Bg2 {[%clk 0:03:00]}  c6 {[%clk 0:02:47]} 3. g5 {[%clk 0:02:55]}  e5 {[%clk 0:02:45]} 4. d4 {[%clk 0:02:55]}  Be7 {[%clk 0:02:36]} 5. h4 {[%clk 0:02:54]}  h6 {[%clk 0:02:33]} 6. dxe5 {[%clk 0:02:42]}  dxe5 {[%clk 0:02:29]} 7. Qxd8+ {[%clk 0:02:43]}  Bxd8 {[%clk 0:02:29]} 8. Nf3 {[%clk 0:02:43]}  hxg5 {[%clk 0:02:24]} 9. hxg5 {[%clk 0:02:34]}  Rxh1+ {[%clk 0:02:18]} 10. Bxh1 {[%clk 0:02:35]}  f6 {[%clk 0:02:12]} 11. Nc3 {[%clk 0:02:33]}  Bf5 {[%clk 0:02:09]} 12. gxf6 {[%clk 0:02:11]}  gxf6 {[%clk 0:02:05]} 13. e4 {[%clk 0:02:12]}  Be6 {[%clk 0:01:58]} 14. Be3 {[%clk 0:02:11]}  Bb6 {[%clk 0:01:51]} 15. Bxb6 {[%clk 0:01:50]}  axb6 {[%clk 0:01:52]} 16. b3 {[%clk 0:01:40]}  Na6 {[%clk 0:01:48]} 17. O-O-O {[%clk 0:01:37]}  Ne7 {[%clk 0:01:16]} 18. Rd6 {[%clk 0:01:29]}  Kf7 {[%clk 0:01:09]} 19. a4 {[%clk 0:00:52]}  Rh8 {[%clk 0:01:04]} 20. Rd1 {[%clk 0:00:52]}  Ng6 {[%clk 0:00:54]} 21. Ne2 {[%clk 0:00:48]}  Bg4 {[%clk 0:00:44]} 22. Bg2 {[%clk 0:00:40]}  Nc5 {[%clk 0:00:39]} 23. Nfg1 {[%clk 0:00:03]}  Rh2 {[%clk 0:00:30]} 24. f3 {[%clk 0:00:03]}  Rxg2 {[%clk 0:00:25]} 25. fxg4 {[%clk 0:00:03]}  Rxg4 {[%clk 0:00:25]} 26. Nc3 {[%clk 0:00:03]}  Nxe4 {[%clk 0:00:19]} 27. Nxe4 {[%clk 0:00:04]}  Rxe4 {[%clk 0:00:18]} 28. Nf3 {[%clk 0:00:02]}  Ke7 {[%clk 0:00:16]} 29. Nd2 {[%clk 0:00:02]}  Rd4 {[%clk 0:00:16]} 30. Rg1 {[%clk 0:00:03]}  Nf4 {[%clk 0:00:15]} 31. Nc4 {[%clk 0:00:03]}  Ne6 {[%clk 0:00:12]} 32. Nxb6 {[%clk 0:00:02]}  e4 {[%clk 0:00:09]} 33. Nc4 {[%clk 0:00:02]}  f5 {[%clk 0:00:08]} 34. a5 {[%clk 0:00:02]}  f4 {[%clk 0:00:07]} 35. c3 {[%clk 0:00:01]}  Rd3 {[%clk 0:00:07]} 36. Kc2 {[%clk 0:00:02]}  Rd8 {[%clk 0:00:04]} 37. Re1 {[%clk 0:00:02]}  e3 {[%clk 0:00:04]} 38. Ne5 {[%clk 0:00:02]}  Rd2+ {[%clk 0:00:03]} 39. Kc1 {[%clk 0:00:02]}  Kd6 {[%clk 0:00:03]} 40. Nc4+ {[%clk 0:00:02]}  Kc5 {[%clk 0:00:01]} 41. Nxd2 {[%clk 0:00:03]}  exd2+ {[%clk 0:00:01]} 42. Kxd2 {[%clk 0:00:04]}  Nc7 {[%clk 0:00:01]} 43. b4+ {[%clk 0:00:05]}  Kb5 {[%clk 0:00:01]} 44. Rf1 {[%clk 0:00:05]}  Nd5 {[%clk 0:00:02]} 45. Kd3 {[%clk 0:00:06]} 1-0


[Site "https://www.chess.com"]

[Event "Titled Tuesday Blitz October 11 Early 2022"]
[White "Onslow, Alfie"]
[Black "Zou, Chen"]
[WhiteFideId "436976"]
[BlackFideId "8610959"]
[WhiteElo "2015"]
[BlackElo "2325"]
[Result "0-1"]
[Round "02"]
[TimeControl "180+1"]
[Date "2022.10.12"]
[WhiteClock "0:00:02"]
[BlackClock "0:00:07"]

1. Nf3 {[%clk 0:03:00]}  Nf6 {[%clk 0:02:59]} 2. g3 {[%clk 0:03:00]}  g6 {[%clk 0:02:59]} 3. Bg2 {[%clk 0:03:01]}  Bg7 {[%clk 0:03:00]} 4. O-O {[%clk 0:03:01]}  O-O {[%clk 0:03:00]} 5. d3 {[%clk 0:03:02]}  d5 {[%clk 0:02:57]} 6. Nbd2 {[%clk 0:03:02]}  Nc6 {[%clk 0:02:52]} 7. e4 {[%clk 0:02:59]}  dxe4 {[%clk 0:02:53]} 8. dxe4 {[%clk 0:02:59]}  e5 {[%clk 0:02:52]} 9. Qe2 {[%clk 0:02:56]}  Qe7 {[%clk 0:02:42]} 10. c3 {[%clk 0:02:55]}  a5 {[%clk 0:02:42]} 11. Rd1 {[%clk 0:02:50]}  Rd8 {[%clk 0:02:41]} 12. a4 {[%clk 0:02:29]}  h6 {[%clk 0:02:36]} 13. b3 {[%clk 0:02:27]}  b6 {[%clk 0:02:13]} 14. Ba3 {[%clk 0:02:26]}  Qe6 {[%clk 0:02:12]} 15. Nf1 {[%clk 0:02:23]}  Ba6 {[%clk 0:02:07]} 16. Qc2 {[%clk 0:02:23]}  Rxd1 {[%clk 0:01:19]} 17. Rxd1 {[%clk 0:02:24]}  Rd8 {[%clk 0:01:19]} 18. Rxd8+ {[%clk 0:02:15]}  Nxd8 {[%clk 0:01:20]} 19. Ne3 {[%clk 0:02:15]}  Nb7 {[%clk 0:01:20]} 20. Nd2 {[%clk 0:01:52]}  Nd6 {[%clk 0:01:19]} 21. Nd5 {[%clk 0:01:43]}  Nxd5 {[%clk 0:01:16]} 22. exd5 {[%clk 0:01:43]}  Qd7 {[%clk 0:01:12]} 23. c4 {[%clk 0:01:36]}  Nb7 {[%clk 0:01:07]} 24. c5 {[%clk 0:01:31]}  bxc5 {[%clk 0:01:04]} 25. Ne4 {[%clk 0:01:31]}  Qf5 {[%clk 0:00:38]} 26. Bxc5 {[%clk 0:01:23]}  Nxc5 {[%clk 0:00:37]} 27. Qxc5 {[%clk 0:01:23]}  Bd3 {[%clk 0:00:37]} 28. Nc3 {[%clk 0:00:49]}  e4 {[%clk 0:00:34]} 29. Nb5 {[%clk 0:00:47]}  Bxb5 {[%clk 0:00:24]} 30. axb5 {[%clk 0:00:45]}  Qe5 {[%clk 0:00:22]} 31. h4 {[%clk 0:00:39]}  Bf8 {[%clk 0:00:18]} 32. Qc4 {[%clk 0:00:36]}  e3 {[%clk 0:00:17]} 33. fxe3 {[%clk 0:00:16]}  Qxg3 {[%clk 0:00:16]} 34. Qf4 {[%clk 0:00:13]}  Qe1+ {[%clk 0:00:14]} 35. Bf1 {[%clk 0:00:11]}  Bd6 {[%clk 0:00:11]} 36. Qf2 {[%clk 0:00:10]}  Qb4 {[%clk 0:00:10]} 37. Bc4 {[%clk 0:00:07]}  a4 {[%clk 0:00:09]} 38. Qa2 {[%clk 0:00:07]}  a3 {[%clk 0:00:09]} 39. Qe2 {[%clk 0:00:06]}  Qc3 {[%clk 0:00:08]} 40. Kf2 {[%clk 0:00:05]}  Qa1 {[%clk 0:00:08]} 41. Kf3 {[%clk 0:00:04]}  Qb1 {[%clk 0:00:08]} 42. Qd3 {[%clk 0:00:04]}  a2 {[%clk 0:00:07]} 43. Qe4 {[%clk 0:00:01]}  Qxe4+ {[%clk 0:00:07]} 44. Kxe4 {[%clk 0:00:02]}  a1=Q {[%clk 0:00:07]} 0-1


[Site "https://www.chess.com"]

[Event "Titled Tuesday Blitz October 11 Early 2022"]
[White "Ovezdurdyyeva, Jemal"]
[Black "Djokic, Mihailo"]
[WhiteFideId "14001888"]
[BlackFideId "976440"]
[WhiteElo "1961"]
[BlackElo "2315"]
[Result "0-1"]
[Round "02"]
[TimeControl "180+1"]
[Date "2022.10.12"]
[WhiteClock "0:00:20"]
[BlackClock "0:01:05"]

1. e4 {[%clk 0:03:00]}  c5 {[%clk 0:02:59]} 2. Nf3 {[%clk 0:03:00]}  d6 {[%clk 0:02:59]} 3. d4 {[%clk 0:03:00]}  cxd4 {[%clk 0:03:00]} 4. Nxd4 {[%clk 0:03:00]}  Nf6 {[%clk 0:03:01]} 5. Nc3 {[%clk 0:03:01]}  g6 {[%clk 0:03:02]} 6. Be2 {[%clk 0:02:59]}  Nc6 {[%clk 0:03:02]} 7. Be3 {[%clk 0:02:59]}  Bg7 {[%clk 0:03:00]} 8. O-O {[%clk 0:02:59]}  O-O {[%clk 0:03:01]} 9. Qd2 {[%clk 0:02:59]}  Ng4 {[%clk 0:03:00]} 10. Nxc6 {[%clk 0:02:57]}  bxc6 {[%clk 0:02:58]} 11. Bg5 {[%clk 0:02:54]}  h6 {[%clk 0:02:55]} 12. Bf4 {[%clk 0:02:46]}  Kh7 {[%clk 0:02:39]} 13. h3 {[%clk 0:02:38]}  Ne5 {[%clk 0:02:30]} 14. Bg3 {[%clk 0:02:17]}  Be6 {[%clk 0:02:27]} 15. b3 {[%clk 0:02:16]}  Qa5 {[%clk 0:02:26]} 16. Rad1 {[%clk 0:01:43]}  Nc4 {[%clk 0:02:20]} 17. Bxc4 {[%clk 0:01:34]}  Bxc4 {[%clk 0:02:18]} 18. bxc4 {[%clk 0:01:35]}  Bxc3 {[%clk 0:02:15]} 19. Qd3 {[%clk 0:01:30]}  Bg7 {[%clk 0:02:14]} 20. a3 {[%clk 0:01:28]}  Rab8 {[%clk 0:02:14]} 21. f4 {[%clk 0:01:25]}  Rb2 {[%clk 0:02:12]} 22. f5 {[%clk 0:01:13]}  Kg8 {[%clk 0:02:00]} 23. e5 {[%clk 0:01:03]}  Bxe5 {[%clk 0:01:42]} 24. fxg6 {[%clk 0:01:01]}  f6 {[%clk 0:01:42]} 25. Qf5 {[%clk 0:00:46]}  Qb6+ {[%clk 0:01:38]} 26. Bf2 {[%clk 0:00:42]}  Qc7 {[%clk 0:01:31]} 27. Be3 {[%clk 0:00:40]}  Kg7 {[%clk 0:01:29]} 28. Qh5 {[%clk 0:00:34]}  Rh8 {[%clk 0:01:27]} 29. Rd2 {[%clk 0:00:31]}  Qb7 {[%clk 0:01:18]} 30. Qg4 {[%clk 0:00:30]}  Qc8 {[%clk 0:01:17]} 31. Qe4 {[%clk 0:00:25]}  h5 {[%clk 0:01:05]} 32. Bxa7 {[%clk 0:00:21]}  Qe6 {[%clk 0:01:05]} 33. Be3 {[%clk 0:00:20]}  Bh2+ {[%clk 0:01:05]} 0-1


[Site "https://www.chess.com"]

[Event "Titled Tuesday Blitz October 11 Early 2022"]
[White "Ozen, Bahadir"]
[Black "Titichoca Daza, Daniel"]
[WhiteFideId "6337058"]
[BlackFideId "3309550"]
[WhiteElo "2503"]
[BlackElo "2105"]
[Result "1/2-1/2"]
[Round "02"]
[TimeControl "180+1"]
[Date "2022.10.12"]
[WhiteClock "0:00:20"]
[BlackClock "0:00:21"]

1. g3 {[%clk 0:03:00]}  d5 {[%clk 0:02:59]} 2. Bg2 {[%clk 0:03:01]}  Nf6 {[%clk 0:03:00]} 3. Nf3 {[%clk 0:03:01]}  e6 {[%clk 0:03:01]} 4. O-O {[%clk 0:03:02]}  Be7 {[%clk 0:03:01]} 5. d4 {[%clk 0:03:01]}  O-O {[%clk 0:03:01]} 6. c4 {[%clk 0:03:01]}  dxc4 {[%clk 0:03:02]} 7. Qc2 {[%clk 0:03:02]}  Bd7 {[%clk 0:03:01]} 8. Ne5 {[%clk 0:02:53]}  Nc6 {[%clk 0:02:44]} 9. Qxc4 {[%clk 0:02:42]}  Nxe5 {[%clk 0:02:39]} 10. dxe5 {[%clk 0:02:43]}  Nd5 {[%clk 0:02:40]} 11. Rd1 {[%clk 0:02:41]}  c5 {[%clk 0:02:28]} 12. Nc3 {[%clk 0:02:21]}  Nxc3 {[%clk 0:02:27]} 13. Qxc3 {[%clk 0:02:16]}  Qc7 {[%clk 0:02:28]} 14. Be3 {[%clk 0:02:15]}  Bc6 {[%clk 0:02:23]} 15. Bxc5 {[%clk 0:02:03]}  Bxg2 {[%clk 0:02:17]} 16. Bxe7 {[%clk 0:02:02]}  Qxc3 {[%clk 0:02:15]} 17. bxc3 {[%clk 0:02:03]}  Rfe8 {[%clk 0:02:11]} 18. Kxg2 {[%clk 0:02:04]}  Rxe7 {[%clk 0:02:09]} 19. Rd3 {[%clk 0:01:55]}  h6 {[%clk 0:02:06]} 20. Rad1 {[%clk 0:01:55]}  Rc7 {[%clk 0:02:01]} 21. f4 {[%clk 0:01:52]}  Rac8 {[%clk 0:02:01]} 22. Rd8+ {[%clk 0:01:53]}  Rxd8 {[%clk 0:01:54]} 23. Rxd8+ {[%clk 0:01:54]}  Kh7 {[%clk 0:01:53]} 24. Rd3 {[%clk 0:01:53]}  g5 {[%clk 0:01:49]} 25. Kf3 {[%clk 0:01:53]}  Kg6 {[%clk 0:01:46]} 26. e4 {[%clk 0:01:53]}  b5 {[%clk 0:01:42]} 27. Ke3 {[%clk 0:01:41]}  gxf4+ {[%clk 0:01:38]} 28. gxf4 {[%clk 0:01:39]}  Rc4 {[%clk 0:01:39]} 29. Kf3 {[%clk 0:01:28]}  a5 {[%clk 0:01:35]} 30. Ke3 {[%clk 0:01:25]}  Ra4 {[%clk 0:01:27]} 31. Rd2 {[%clk 0:01:25]}  f5 {[%clk 0:01:21]} 32. exf6 {[%clk 0:01:24]}  Kxf6 {[%clk 0:01:21]} 33. Rd6 {[%clk 0:01:19]}  Rxa2 {[%clk 0:01:17]} 34. f5 {[%clk 0:01:18]}  Rxh2 {[%clk 0:01:16]} 35. Rxe6+ {[%clk 0:01:18]}  Kf7 {[%clk 0:01:10]} 36. Ra6 {[%clk 0:01:19]}  b4 {[%clk 0:01:06]} 37. cxb4 {[%clk 0:01:18]}  axb4 {[%clk 0:01:04]} 38. e5 {[%clk 0:01:18]}  b3 {[%clk 0:01:01]} 39. Ra7+ {[%clk 0:01:18]}  Kg8 {[%clk 0:00:57]} 40. Rb7 {[%clk 0:01:19]}  b2 {[%clk 0:00:50]} 41. f6 {[%clk 0:01:17]}  Rc2 {[%clk 0:00:46]} 42. Kf4 {[%clk 0:01:11]}  Rf2+ {[%clk 0:00:40]} 43. Ke4 {[%clk 0:01:11]}  h5 {[%clk 0:00:34]} 44. Ke3 {[%clk 0:01:11]}  Rf5 {[%clk 0:00:28]} 45. Kd4 {[%clk 0:01:11]}  Rf2 {[%clk 0:00:23]} 46. Ke3 {[%clk 0:00:41]}  Rf5 {[%clk 0:00:22]} 47. Ke4 {[%clk 0:00:38]}  Rf2 {[%clk 0:00:21]} 48. Ke3 {[%clk 0:00:20]} 1/2-1/2


[Site "https://www.chess.com"]